Cogmind - Beta 11 @@@ ROGUE MODE // 2023.02.07 @ 11:51:35 Player: ZarZap Result: Destroyed by Y-45 Defender with Beam Rifle Performance ------------- Evolutions (1) 500 Regions Visited (2) 400 Robots Destroyed (6) 30 Value Destroyed (188) 188 Prototype IDs (0) 0 Alien Tech Used (0) 0 Bonus (0) 0 TOTAL SCORE: 1118 Bonus ------- None Cogmind --------- Core Integrity 0/400 Matter 237/300 Energy 100/100 System Corruption 0% Temperature Cool (18) Movement Core (100) Ox1 Location -9/Materials Parts ------- > --- POWER (2) -------- (None) > --- PROPULSION (3) --- (None) > --- UTILITY (2) ------ Small Storage Unit > --- WEAPON (2) ------- (None) > --- INVENTORY (8) ---- Wheel Wheel Peak State ------------ > --- POWER ------------ Light Ion Engine Light Nuclear Core > --- PROPULSION ------- Light Treads Wheel Compact Wheel > --- UTILITY ---------- Small Storage Unit > --- WEAPON ----------- Assault Rifle Light Assault Rifle > --- INVENTORY -------- Assault Rifle [Rating: 10] Favorites ----------- Power Light Ion Engine Engine Light Ion Engine Power Core Light Nuclear Core Propulsion Light Treads Treads Light Treads Wheel Wheel Utility Small Storage Unit Storage Small Storage Unit Weapon Assault Rifle Ballistic Gun Assault Rifle Build | -11 -10 -9 ------- Run | Scr Mat Mat Slots Evolved 2 | . . 2 Power 1 | . . 1 Propulsion 1 | . . 1 Utility . | . . . Weapon . | . . . Parts Attached 14 | 5 2 7 Power 3 | 1 1 1 Engine 2 | 1 1 . Core 1 | . . 1 Reactor . | . . . Propulsion 7 | 2 . 5 Treads 2 | 2 . . Leg . | . . . Wheel 5 | . . 5 Hover . | . . . Flight . | . . . Utility 1 | 1 . . Device . | . . . Storage 1 | 1 . . Processor . | . . . Hackware . | . . . Protection . | . . . Artifact . | . . . Weapon 3 | 1 1 1 Energy Gun . | . . . Energy Cannon . | . . . Ballistic Gun 3 | 1 1 1 Ballistic Cannon . | . . . Launcher . | . . . Special Weapon . | . . . Impact Weapon . | . . . Slashing Weapon . | . . . Piercing Weapon . | . . . Special Melee Weapon . | . . . Unidentified Prototypes . | . . . Parts Lost 12 | . 2 10 Power 3 | . 1 2 Propulsion 6 | . 1 5 Utility . | . . . Weapon 3 | . . 3 Highest Loss Streak 7 | . 2 7 To Critical Strikes . | . . . Average Slot Usage (%) 57 | . 67 52 Engine 6 | . 10 4 Core 3 | . . 4 Treads 6 | . 16 . Wheel 12 | . . 19 Storage 12 | . 14 11 Ballistic Gun 16 | . 25 12 Naked Turns . | . . . Heaviest Build 16 | 10 11 16 Greatest Support 40 | 40 40 36 Greatest Overweight (x) 2 | . . 2 Average Overweight (x) . | . . . Largest Inventory Capacity 8 | 8 8 8 Average Capacity 7 | 6 8 8 Most Carried 6 | 5 5 6 Average Carried 3 | 4 4 3 Final Capacity 8 | 8 8 8 Final Carried 5 | 5 4 2 Class Distribution -------------------- 100% | Mutant Dominant Class ---------------- Mutant | -10/Materials Mutant | -9/Materials Resources | -11 -10 -9 ----------- Run | Scr Mat Mat Matter Collected 341 | 250 80 11 Remotely . | . . . Salvage Created 172 | . 80 92 Parts 13 | . 7 6 Haulers Intercepted . | . . . Recyclers Shooed . | . . . Parts Field Recycled . | . . . Retrieved Matter . | . . . Parts Self-Destructed . | . . . Prevented . | . . . Kills | -11 -10 -9 ------- Run | Scr Mat Mat Combat Hostiles Destroyed 5 | . 3 2 Guns 5 | . 3 2 Classes Destroyed 3 | . 2 1 Watcher 1 | . . 1 Swarmer 1 | . 1 . Grunt 4 | . 2 2 Best Kill Streak 2 | . 2 1 Combat Bots Only 2 | . 2 1 Max Kills in Single Turn 1 | . 1 1 Gunslinging . | . . . Exploded . | . . . Melee . | . . . Uniques/NPCs Destroyed . | . . . Combat | -11 -10 -9 -------- Run | Scr Mat Mat Damage Taken 1458 | . 499 959 Core 484 | . 74 410 Absorbed by Shields . | . . . Core Remaining (%) 85 | 100 70 . Volleys Fired 34 | . 22 12 Largest 2 | . 2 2 Hottest 40 | . 40 40 Shots Fired 61 | . 41 20 Gun 61 | . 41 20 Cannon . | . . . Launcher . | . . . Special . | . . . Kinetic 61 | . 41 20 Thermal . | . . . Explosive . | . . . Electromagnetic . | . . . Robot Hit Streak 6 | . 6 6 Robot Miss Streak 3 | . 3 3 Penetration Max . | . . . Secondary Targets . | . . . Shots Hit Robots 39 | . 26 13 Core Hits 16 | . 7 9 Critical Kills . | . . . Critical Parts Destroyed . | . . . Critical Strikes . | . . . Melee Attacks . | . . . Impact . | . . . Slashing . | . . . Piercing . | . . . Sneak Attacks . | . . . Combat Hostiles . | . . . Follow-up Attacks . | . . . Damage Inflicted 436 | . 274 162 Guns 422 | . 274 148 Cannons . | . . . Explosions . | . . . Melee . | . . . Ramming 14 | . . 14 Kinetic 422 | . 274 148 Thermal . | . . . Explosive . | . . . Electromagnetic . | . . . Impact . | . . . Slashing . | . . . Piercing . | . . . Highest Corruption . | . . . Average Corruption . | . . . Corruption Purged . | . . . Corruption Blocked . | . . . Overload Shots . | . . . Overflow Damage . | . . . Projectiles . | . . . Explosions . | . . . Melee . | . . . Knockbacks . | . . . Impact . | . . . Kinetic . | . . . Secondary . | . . . Self-Inflicted Damage 6 | . . 6 Shots . | . . . Rammed 3 | . . 3 Targets Rammed 3 | . . 3 Kicked . | . . . Crushed . | . . . Highest Temperature 82 | . 22 82 Average Temperature 23 | . 7 37 Received Heat Transfer 792 | . 249 543 Siege Activations . | . . . Robots Corrupted . | . . . Combat Hostiles . | . . . Parts Fried . | . . . Impact Corruptions . | . . . Robots Melted . | . . . Combat Hostiles . | . . . Parts Melted . | . . . Heat Transferred . | . . . Parts Sabotaged . | . . . Parts Stolen . | . . . Parts Stripped . | . . . Power Chain Reactions . | . . . Missiles Intercepted . | . . . Alert | -11 -10 -9 ------- Run | Scr Mat Mat Peak Influence 107 | . 85 107 Initial 35 | . . 35 Average 52 | . 50 68 Maximum Alert Level . | . . . Low Security (%) 100 | 100 100 100 Level 1 . | . . . Level 2 . | . . . Level 3 . | . . . Level 4 . | . . . Level 5 . | . . . High Security . | . . . Max Security . | . . . Squads Dispatched 1 | . . 1 Investigation . | . . . Extermination . | . . . Reinforcement 1 | . . 1 Assault . | . . . Garrison . | . . . Intercept . | . . . Searches Triggered . | . . . Construction Impeded . | . . . Haulers Reinforced . | . . . Active Scanning Responses . | . . . Cargo Convoy Interrupts . | . . . Stealth | -11 -10 -9 --------- Run | Scr Mat Mat Distress Signals 1 | . . 1 Communications Jammed . | . . . Distress Signals . | . . . Times Spotted 15 | . 5 10 Peak Tracking Total 6 | . 3 6 Tactical Retreats 1 | . . 1 Traps | -11 -10 -9 ------- Run | Scr Mat Mat Traps Triggered . | . . . Indirectly . | . . . Trap Hack Attempts . | . . . Triggered . | . . . Disarmed . | . . . Reprogrammed . | . . . Reused . | . . . Traps Extracted . | . . . Installed . | . . . Triggered . | . . . Machines | -11 -10 -9 ---------- Run | Scr Mat Mat Machines Disabled . | . . . Max in Single Turn . | . . . Machines Sabotaged . | . . . Garrisons Compromised . | . . . Overloaded Fab Kills . | . . . Hacking | -11 -10 -9 --------- Run | Scr Mat Mat Machines Accessed . | . . . Terminals . | . . . Fabricators . | . . . Repair Stations . | . . . Recycling Units . | . . . Scanalyzers . | . . . Garrison Access . | . . . Total Hacks . | . . . Successful . | . . . Failed . | . . . Catastrophic . | . . . Database Lockouts . | . . . Manual . | . . . Terminals . | . . . Fabricators . | . . . Repair Stations . | . . . Recycling Units . | . . . Scanalyzers . | . . . Garrison Access . | . . . Terminal Hacks . | . . . Fabricator Hacks . | . . . Repair Station Hacks . | . . . Recycling Unit Hacks . | . . . Scanalyzer . | . . . Garrison Access Hacks . | . . . Unauthorized Hacks . | . . . Terminals . | . . . Fabricators . | . . . Repair Stations . | . . . Recycling Units . | . . . Scanalyzers . | . . . Garrison Access . | . . . Data Cores Recovered . | . . . Used . | . . . Hacking Detections . | . . . Full Trace Events . | . . . Feedback Events . | . . . Feedback Blocked . | . . . Robot Schematics Acquired . | . . . Robots Built . | . . . Authchips . | . . . Time . | . . . Total Robot Build Rating . | . . . Part Schematics Acquired . | . . . Parts Built . | . . . Authchips . | . . . Time . | . . . Total Part Build Rating . | . . . Parts Repaired . | . . . Time . | . . . Parts Recycled . | . . . Recycled Matter . | . . . Retrieved Matter . | . . . Retrieved Components . | . . . Parts Scanalyzed . | . . . Part Schematics Acquired . | . . . Parts Damaged . | . . . Bothacking | -11 -10 -9 ------------ Run | Scr Mat Mat Used RIF Installer . | . . . Robots Hacked . | . . . Non-combat . | . . . Combat . | . . . Robot Hacks Applied . | . . . Relay Couplers Released . | . . . Fabnet Peak Effective % . | . . . Robots Rewired . | . . . Allies Hacked . | . . . Hacks Repelled . | . . . Allies | -11 -10 -9 -------- Run | Scr Mat Mat Total Allies . | . . . Largest Group . | . . . Highest-Rated Group . | . . . Highest-Rated Ally . | . . . Total Orders . | . . . Ally Attacks . | . . . Total Damage . | . . . Kills . | . . . Allies Corrupted . | . . . Allies Melted . | . . . Intel | -11 -10 -9 ------- Run | Scr Mat Mat Robot Analysis Total . | . . . Derelict Logs Recovered . | . . . Drone Launches . | . . . Drone Recoveries . | . . . Exploration | -11 -10 -9 ------------- Run | Scr Mat Mat Turns Passed 514 | 79 153 282 Spaces Moved 267 | 49 55 163 Core 49 | 12 . 37 Treads 92 | 37 55 . Legs . | . . . Wheels 126 | . . 126 Hover . | . . . Flight . | . . . Fastest Speed 50 | 50 160 80 Average Speed 117 | 133 160 98 Slowest Speed 160 | 160 160 150 Overloaded Moves . | . . . Propulsion Burnouts . | . . . Robots Hopped . | . . . Cave-ins Triggered . | . . . Exploration Rate (%) 12 | 5 18 15 Regions Visited 2 Branch Regions . Pre-discovered Areas . | . . . Known Exits Taken . | . . . Unknown Exits Taken 2 | 1 1 . Scrap Searched . | . . . Spaces Dug . | . . . Terrain Destroyed . | . . . Melee . | . . . Projectile . | . . . AOE . | . . . Terrain Rammed . | . . . Walls Destroyed . | . . . Machines Disabled . | . . . Actions | -11 -10 -9 --------- Run | Scr Mat Mat Total 412 | 63 83 266 Wait 79 | . 4 75 Move 265 | 48 54 163 Hop . | . . . Pick Up 16 | 10 1 5 Fast Attach . | . . . Attach 14 | 5 2 7 Detach . | . . . Swap . | . . . Drop 1 | . . 1 Fire 34 | . 22 12 Melee . | . . . Ram 3 | . . 3 Kick . | . . . Crush . | . . . Escape Stasis . | . . . Rewire . | . . . Trap . | . . . Miscellaneous . | . . . Route ------- -11/Scrapyard -10/Materials -9/Materials History --------- Turn | Location | Event 2 | -11/Scrapyard | Met Revision 17 8 | -11/Scrapyard | Discovered new exit (range 13) 80 | -11/Scrapyard | Entered Materials 211 | -10/Materials | Discovered new exit (range 9) 233 | -10/Materials | Entered another Materials area 233 | -9/Materials | Evolved 2 slots: Power x1, Propulsion x1 318 | -9/Materials | Build established: Mutant 427 | -9/Materials | Lost 7 parts (2p3n2w) 460 | -9/Materials | Core integrity fell below 50% 506 | -9/Materials | Core integrity fell below 20% 515 | -9/Materials | Destroyed by Y-45 Defender with Beam Rifle Last Messages --------------- 00356_ Lgt. Nuclear Core destroyed. 00359_ K-01 Serf collects debris. 00370_ Slammed into K-01 Serf. 00371_ Wheel destroyed. 00374_ K-01 Serf collects debris. 00377_ Com. Wheel destroyed. 00377_ R-06 Scavenger collects Aluminum Leg. 00379_ K-01 Serf collects debris. 00381_ R-06 Scavenger collects Particle Gun. 00382_ K-01 Serf collects debris. 00392_ Acquired 11 matter. 00396_ Wheel destroyed. 00398_ Slammed into K-01 Serf. 00419_ O-16 Technician: "IFF HANDSHAKE FAILED. SECURING TERMINAL." 00422_ Slammed into O-16 Technician. 00423_ O-16 Technician uses terminal to summon reinforcements. 00423_ ALERT: Hostiles spotted, dispatching reinforcements to Terminal M007. 00423_ O-16 Technician locks terminal. 00444_ Assault Rifle destroyed. 00473_ Wheel destroyed. Map ----- +----------------------------------------------------+ | ????????????????????????# #????????????????? | | ????????????????????????# #????????????????? | | ????????????????????????# #????????????????? | | ????????????????????????# #????????????????? | | ????????????????????????# #???#+#??????????? | | ????????????????????????# #??? ??????????? | | ????????????????????????# #??# #??????????? | | ????????????????????????# #??# #??????????? | | ????????????????????????# #??# #??????????? | | ????????????????????????# #??# #??????????? | | ???????????????????######+#### #??????????? | | ???????????????????# # #??????????? | | ???????????????????# # +??????????? | | ???????????????????# # #??????????? | | ???????????????????# """ # #??????????? | | ???????????????????# """ # #??????????? | | ???????????????????# """ # #??????????? | | ???????????????????# "T" / #??####????? | | ???????????????????# # #? #???? | | ???????????????????########### #?"" #???? | | ??????????????????????# """ # #""" #???? | | ??????????????????????#! """ # #""" #???? | | ??????????????????????# """ + + #???? | | ??????????????????????# g # # #???? | | ??????????????????????# gY # ########???? | | ??????????????????????# @ g # ?????????? | | ??????????????????????######## ????????? | | ?????????????????????????????###+###???????? | | ???????????????????????????????????????????? | | ???????????????????????????????????????????? | | ???????????????????????????????????????????? | | ???????????????????????????????????????????? | | ???????????????????????????????????????????? | | ???????????????????????????????????????????? | | ???????????????????????????????????????????? | | | | | | | | | | | | | | | | | | | | | | | | | | | | | | | +----------------------------------------------------+ Best States ------------- Heat Dissipation 28 Energy Generation 19 Energy Capacity 185 Matter Stores 300 Matter Capacity 300 Sight Range 16 Terrain Scan Density 10 Evasion (%) 50 Recoil Reduction 2 Item Schematics ----------------- None Robot Schematics ------------------ None Fabricated ------------ Nothing Alien Tech Used ----------------- None Achievements -------------- None Challenges ------------ None Game ------ Seed HellfireReactiveCharge Manual? 0 Play Time 00:08:39 Cumulative 17.8 hours Start 2023.02.07 @ 11:42:08 End 2023.02.07 @ 11:51:35 Sessions 1 Manual Loads 0 Difficulty Rogue Special Mode None Game No. 40 Rogue 11 Adventurer 29 Explorer 0 Win Type - Total 0 Types 0/0/0/0/0/0/0/0/0 Lore% 21 Gallery% 24 Achievement% 17 Wizard Run 0 Options --------- ASCII 0 Keyboard 0 Movement Mouse Keybinds 0 Fullscreen 1 Font 12/Terminus Map View 83x54 Tactical HUD 1 Map Filters NONE Filters NONE Steam 0 RUN: 6cb61a76-3aaa-44aa-8c81-2f8b2864eb17